bitfinex-derivatives/quotes_ETHF0:USTF0_20251204
["timestamp","ask_amount","ask_price","bid_price","bid_amount"]
[1764809769133,3.2078,3200.9,3200.8,5.19874145]
[1764809769322,0.00398623,3201.1,3200.8,5.19874145]
[1764809769525,0.00398623,3201.1,3201.0,5.1954]
[1764809769929,2.6785,3200.9,3200.8,0.00334145]
[1764809770128,5.2632,3200.9,3200.8,0.00334145]
[1764809770335,6.2846334,3200.9,3200.8,0.00334145]
[1764809771437,1.0214334,3200.9,3200.8,5.19874145]
[1764809771628,0.00398623,3201.1,3201.0,5.1954]
[1764809772137,0.00398623,3201.1,3201.0,2.6659]
[1764809772338,3.70437771,3201.1,3200.8,0.15952145]
[1764809772631,0.33773139,3201.0,3200.9,5.1954]
[1764809772833,3.2078,3201.8,3201.2,5.1954]
[1764809773137,2.6785,3201.3,3201.2,0.00469124]
[1764809773735,2.68124179,3201.3,3201.2,0.00469124]
[1764809775137,0.68726046,3201.3,3201.2,2.67059124]
[1764809775337,0.68726046,3201.3,3201.2,5.20009124]
[1764809775731,0.00274179,3201.3,3201.2,5.20009124]
[1764809776439,0.68436598,3201.7,3201.6,5.1954]
[1764809776936,5.2632,3201.3,3201.2,0.00469124]
[1764809777138,3.3629086,3201.3,3201.2,0.00469124]
[1764809777335,2.6785,3201.3,3201.2,0.00469124]
[1764809777639,0.68798413,3201.3,3201.2,8.40789124]
[1764809777837,0.00368897,3201.3,3201.2,8.40789124]
[1764809779435,2.68218897,3201.3,3201.2,6.03455124]
[1764809779742,0.00368897,3201.3,3201.2,8.56405124]
[1764809783032,2.68218897,3201.3,3201.2,2.67059124]
[1764809783237,8.47468897,3201.3,3201.2,0.00469124]
[1764809783443,9.15912173,3201.3,3201.2,0.00469124]
[1764809784840,9.49406059,3201.3,3201.2,0.00469124]
[1764809785149,1.02306059,3201.3,3201.2,5.20009124]
[1764809785445,0.33862783,3201.3,3201.2,5.20009124]
[1764809785941,0.00368897,3201.3,3201.2,5.20009124]
[1764809786143,0.00368897,3201.3,3201.2,8.40789124]
[1764809787143,0.00368897,3201.3,3201.2,5.20009124]
[1764809789040,2.6785,3202.2,3202.1,2.6659]
[1764809789242,3.36334218,3202.2,3202.1,5.1954]
[1764809789441,3.36334218,3202.2,3202.1,2.6659]
[1764809789638,5.94804218,3202.2,3201.7,3.2078]
[1764809789852,0.68484218,3202.1,3201.7,3.2078]
[1764809790038,0.00350399,3202.1,3202.0,5.1954]
[1764809790952,0.00350399,3202.1,3202.0,2.6659]
[1764809790953,2.68200399,3202.1,3202.0,2.6659]
[1764809791148,3.36692233,3202.1,3202.0,2.6659]
[1764809791550,0.68842233,3202.1,3202.0,5.1954]
[1764809791847,0.00350399,3202.1,3202.0,5.1954]
[1764809792348,0.00350399,3202.1,3202.0,6.7794]
[1764809793346,0.00350399,3202.1,3202.0,5.1954]
[1764809793547,4.8745,3201.8,3201.7,3.07912033]
[1764809793854,2.2281,3201.3,3201.2,2.22049124]
[1764809794051,5.55939552,3201.3,3201.2,0.00469124]
[1764809798348,0.68489552,3201.3,3201.2,4.77349124]
[1764809798547,3.2078,3201.6,3201.5,2.2158]
[1764809798750,6.12192635,3201.6,3201.5,2.2158]
[1764809799047,8.76832635,3201.6,3201.2,0.00469124]
[1764809799248,0.68602635,3201.5,3201.2,0.00469124]
[1764809799649,0.68602635,3201.5,3201.4,2.2579]
[1764809799852,0.68602635,3201.5,3201.4,4.6128]
[1764809801056,1.0188218,3201.5,3201.4,4.6128]
[1764809801650,3.2078,3202.0,3201.9,4.6128]
[1764809801955,4.22713776,3202.0,3201.9,4.6128]
[1764809802658,1.01933776,3202.0,3201.9,4.6128]
[1764809803356,0.33288459,3202.0,3201.9,4.6128]
[1764809803554,0.00350399,3202.1,3202.0,2.2579]
[1764809803755,0.00350399,3202.1,3202.0,4.6128]
[1764809804459,2.35150399,3202.1,3202.0,2.2579]
[1764809804648,2.68426019,3202.1,3202.0,2.2579]
[1764809804855,0.00350399,3202.1,3202.0,5.5389]
[1764809805057,2.35150399,3202.1,3202.0,4.6128]
[1764809805948,4.70690399,3202.1,3202.0,2.2579]
[1764809806458,2.35150399,3202.1,3202.0,2.2579]
[1764809807158,0.00350399,3202.1,3202.0,4.6128]
[1764809807660,2.35150399,3202.1,3202.0,4.6128]
[1764809807864,2.35150399,3202.1,3202.0,5.5389]
[1764809807865,0.00350399,3202.1,3202.0,5.5389]
[1764809808358,0.00350399,3202.1,3202.0,4.6128]
[1764809810361,0.00350399,3202.1,3202.0,5.5389]
[1764809810556,1.66725845,3203.8,3202.7,0.15608]
[1764809810755,6.19825845,3204.0,3203.4,4.6128]
[1764809810960,0.33232852,3203.9,3203.4,4.61748369]
[1764809811464,2.35045661,3203.9,3203.4,0.00717363]
[1764809811657,2.35045661,3203.9,3203.8,2.2579]
[1764809811855,6.0266,3203.5,3203.4,0.00717363]
[1764809812660,7.91019134,3203.5,3203.4,0.00717363]
[1764809812961,2.348,3202.8,3202.3,3.2078]
[1764809813965,2.348,3202.8,3202.3,3.21098293]
[1764809815767,2.348,3202.8,3202.7,2.2579]
[1764809816061,4.7034,3202.8,3202.3,3.21098293]
[1764809816653,2.348,3202.4,3202.3,5.46888293]
[1764809816859,0.00465854,3202.9,3202.3,7.82378293]
[1764809817265,2.348,3202.4,3202.3,7.82378293]
[1764809817466,2.348,3202.4,3202.3,5.46888293]
[1764809817864,2.348,3202.4,3202.3,7.82378293]
[1764809818064,0.00465854,3202.9,3202.3,7.82378293]
[1764809821570,4.70805854,3202.9,3202.8,2.2579]
[1764809821966,0.00465854,3202.9,3202.8,4.6128]
[1764809822272,0.00465854,3202.9,3202.8,7.8206]
[1764809822666,4.70805854,3202.9,3202.8,5.4657]
[1764809822869,4.70805854,3202.9,3202.8,2.2579]
[1764809823372,4.70805854,3202.9,3202.3,3.21098293]
[1764809824275,4.3329,3202.4,3202.3,5.36848293]
[1764809824467,1.88824988,3202.9,3202.4,4.5724]
[1764809824672,0.00465854,3202.9,3202.4,4.5724]
[1764809825271,4.33755854,3202.9,3202.8,2.1575]
[1764809825471,2.01615854,3202.9,3202.8,4.5724]
[1764809826269,0.00465854,3202.9,3202.8,4.5724]
[1764809826671,2.01615854,3202.9,3202.8,4.5724]
[1764809827867,4.3329,3202.4,3202.3,3.21098293]
[1764809828170,4.3329,3202.4,3202.3,0.00318293]
[1764809830272,4.66540579,3202.4,3202.3,0.00318293]
[1764809830567,2.34400579,3202.4,3202.3,2.16068293]
[1764809830772,4.66540579,3202.4,3202.3,0.00318293]
[1764809830972,4.66540579,3202.4,3202.3,2.16068293]
[1764809831177,2.34413759,3202.4,3202.3,4.57558293]
[1764809831473,5.2193,3202.6,3202.5,2.1575]
[1764809831673,5.55194496,3202.6,3202.5,4.5724]
[1764809832372,0.33264496,3202.6,3202.5,4.5724]
[1764809832563,2.01615854,3202.9,3202.8,2.1575]
[1764809832767,3.02492051,3202.9,3202.8,2.1575]
[1764809833069,5.34632051,3202.9,3202.3,0.00318293]
[1764809833273,1.00876197,3202.8,3202.3,0.00318293]
[1764809833474,3.02026197,3202.7,3202.6,2.1575]
[1764809833675,3.02026197,3202.7,3202.6,4.5724]
[1764809833974,4.3329,3202.4,3202.3,3.21098293]
[1764809834482,5.34198213,3202.4,3202.3,0.00318293]
[1764809834768,4.3329,3202.3,3202.2,0.00468369]
[1764809834965,5.34198213,3202.3,3202.2,0.00468369]
[1764809835165,5.34198213,3202.3,3201.5,3.2078]
[1764809835166,4.3329,3201.6,3201.5,3.2078]
[1764809835371,3.21559134,3202.0,3201.5,7.7802]
[1764809835571,2.0115,3201.6,3201.5,7.7802]
[1764809835775,0.0028281,3201.6,3201.5,7.78305148]
[1764809838374,2.0143281,3201.6,3201.5,7.78305148]
[1764809838580,4.3357281,3201.6,3201.5,3.21065148]
[1764809839280,0.0028281,3201.6,3201.5,7.78305148]
[1764809839883,2.0143281,3201.6,3201.5,7.78305148]
[1764809840481,4.3357281,3201.6,3201.5,3.21065148]
[1764809840780,4.3357281,3201.6,3201.5,5.36815148]
[1764809841278,4.3357281,3201.6,3201.5,2.16035148]
[1764809842076,4.66819071,3201.6,3201.5,0.00285148]
[1764809842279,5.34397171,3201.6,3201.5,0.00285148]
[1764809842487,1.01107171,3201.6,3201.5,4.57525148]
[1764809842984,3.02257171,3201.6,3201.5,4.57525148]
[1764809843183,5.34397171,3201.6,3201.5,0.00285148]
[1764809843382,4.66819071,3201.6,3201.5,0.00285148]
[1764809845383,4.3329,3201.3,3200.7,3.2078]
[1764809845580,2.0115,3200.4,3200.3,7.7802]
[1764809846087,1.332,3201.0,3200.3,7.7802]
[1764809846284,1.01140691,3200.9,3200.3,7.7802]
[1764809846487,0.00468369,3200.9,3200.3,7.78761288]
[1764809846793,0.33683431,3200.9,3200.3,7.78761288]
[1764809847282,0.00468369,3200.9,3200.3,7.78761288]
[1764809850991,4.33758369,3200.9,3200.8,2.1575]
[1764809852695,0.00468369,3200.9,3200.8,4.5724]
[1764809854091,2.01618369,3200.9,3200.8,4.5724]
[1764809854294,4.16618369,3200.9,3200.4,0.15619]
[1764809854489,5.173,3200.5,3200.3,3.21521288]
[1764809854693,5.173,3200.5,3200.4,1.9472]
[1764809854893,4.0179,3200.4,3200.3,0.00741288]
[1764809855196,4.0179,3200.4,3200.3,1.95461288]
[1764809855693,4.0179,3200.4,3200.3,4.14341288]
[1764809855896,4.0179,3200.4,3200.3,0.00741288]
[1764809856483,4.34962656,3200.4,3200.3,0.00741288]
[1764809858593,5.02723685,3200.4,3199.4,3.2078]
[1764809858898,4.9903,3199.5,3199.4,5.0729]
[1764809859595,3.2078,3199.9,3199.4,7.01976734]
[1764809863397,1.9593,3199.5,3199.4,7.01976734]
[1764809863695,3.8852,3199.5,3199.4,7.01976734]
[1764809863892,4.9903,3199.5,3199.4,0.00256734]
[1764809864095,7.10153229,3199.5,3199.4,0.00256734]
[1764809864295,8.1981,3199.5,3199.4,0.00256734]
[1764809864491,8.1981,3199.5,3199.4,3.81196734]
[1764809864991,8.1981,3199.5,3199.4,1.86766734]
[1764809865298,8.1981,3199.5,3199.4,0.00256734]
[1764809866701,5.1671,3199.5,3199.4,3.81196734]
[1764809867197,3.2078,3199.5,3199.4,3.81196734]
[1764809867401,1.9593,3199.5,3199.4,3.81196734]
[1764809871698,3.8852,3199.5,3199.4,3.81196734]
[1764809872207,4.9903,3199.5,3199.4,0.00256734]
[1764809872392,4.9903,3199.5,3199.4,1.86766734]
[1764809873602,3.8852,3199.2,3199.1,0.00468369]
[1764809873805,6.32879899,3199.2,3199.1,0.00468369]
[1764809874406,7.00796692,3199.2,3199.1,0.00468369]
[1764809874704,7.01137197,3199.2,3199.1,0.00847239]
[1764809876006,3.8852,3198.6,3198.5,3.2078]
[1764809876601,3.8852,3198.6,3198.5,1.8651]
[1764809876807,4.9903,3199.0,3198.9,1.8651]
[1764809876999,6.0031973,3199.0,3198.9,0.00400389]
[1764809878506,3.8852,3198.4,3197.9,3.2078]
[1764809878810,4.9903,3198.0,3197.9,7.0172]
[1764809879513,4.9903,3198.0,3197.9,3.81316328]
[1764809880714,4.9903,3198.0,3197.9,0.00376328]
[1764809881004,4.9903,3198.0,3197.9,3.81316328]
[1764809881207,4.9903,3198.5,3198.4,1.8651]
[1764809881408,5.1671,3198.7,3198.6,3.8094]
[1764809881605,3.8852,3198.1,3198.0,1.8651]
[1764809882010,4.9903,3198.0,3197.9,1.86886328]
[1764809882211,4.9903,3198.0,3197.9,0.00376328]
[1764809882909,4.9903,3198.0,3197.9,3.81316328]
[1764809883110,4.9903,3198.0,3197.9,1.86886328]
[1764809884006,4.9903,3198.0,3197.9,0.00376328]
[1764809884407,4.9903,3198.0,3197.9,1.82886328]
[1764809885211,4.9903,3198.0,3197.9,0.00376328]
[1764809885706,4.9903,3198.0,3197.9,1.82886328]
[1764809885707,3.0644,3198.0,3197.9,1.82886328]
[1764809885906,5.0055,3198.0,3197.9,0.00376328]
[1764809888415,5.0055,3198.0,3197.9,1.82886328]
[1764809889115,5.0055,3198.0,3197.9,0.00376328]
[1764809891212,5.0055,3198.0,3197.9,1.82886328]
[1764809892220,5.0055,3198.0,3197.9,3.66336328]
[1764809892221,3.0644,3198.0,3197.9,3.66336328]
[1764809892516,4.7742,3198.0,3197.9,0.00376328]
[1764809894422,3.7126,3197.1,3197.0,6.8674]
[1764809894918,1.0616,3197.5,3197.0,6.8674]
[1764809895220,4.7742,3197.5,3197.4,1.8251]
[1764809895420,5.10630033,3197.5,3197.4,1.82906522]
[1764809895619,5.10630033,3197.5,3197.4,0.00396522]
[1764809896519,4.7742,3197.5,3197.4,1.82906522]
[1764809896719,5.10623123,3197.5,3197.4,3.66356522]
[1764809896922,5.10623123,3197.5,3197.4,1.82906522]
[1764809897620,5.10623123,3197.5,3197.4,0.00396522]
[1764809901417,5.78646012,3197.5,3197.4,0.00396522]
[1764809904515,5.10623123,3197.5,3197.4,0.00396522]
[1764809904722,5.78737955,3197.5,3197.4,1.82906522]
[1764809904920,5.78737955,3197.5,3197.4,3.66356522]
[1764809905120,0.33203123,3197.5,3197.4,3.66356522]
[1764809905429,5.10700028,3197.5,3197.4,0.00396522]
[1764809907430,5.79223032,3197.5,3197.4,0.00396522]
[1764809907927,5.79223032,3197.5,3197.4,3.66356522]
[1764809908631,5.79223032,3197.5,3197.4,1.82906522]
[1764809909025,5.79223032,3197.5,3197.4,3.66356522]
[1764809909330,5.79223032,3197.5,3197.4,1.82906522]
[1764809909825,3.85113032,3197.5,3197.4,3.66356522]
[1764809910026,5.79223032,3197.5,3197.4,0.00396522]
[1764809911230,3.7126,3196.7,3196.6,6.8674]
[1764809912226,1.77463855,3196.7,3196.6,6.87120268]
[1764809912535,0.00313855,3196.7,3196.6,8.16232039]
[1764809913428,3.47933855,3196.7,3196.6,6.87120268]
[1764809913626,0.00313855,3196.7,3196.6,6.87120268]
[1764809913826,1.55003855,3196.7,3196.6,6.87120268]
[1764809914334,0.00313855,3196.7,3196.6,6.87120268]
[1764809915037,6.4594,3197.4,3197.3,3.2866]
[1764809915231,7.47881528,3197.4,3197.3,3.2866]
[1764809915931,7.48246644,3197.4,3197.3,3.2866]
[1764809916228,4.23086644,3197.4,3197.3,3.2866]
[1764809917436,0.33702945,3197.4,3197.3,3.2866]
[1764809917629,0.00365116,3197.4,3197.3,3.2866]
[1764809919535,1.55055116,3197.4,3197.3,3.2866]
[1764809920338,3.08075116,3197.4,3197.3,3.2866]
[1764809920738,3.08075116,3197.4,3197.3,1.4995]
[1764809920938,3.08075116,3197.4,3197.3,3.0219]
[1764809921642,3.08075116,3197.4,3197.3,1.4995]
[1764809921843,3.08075116,3197.4,3197.3,3.0219]
[1764809922040,1.55055116,3197.4,3197.3,3.0219]
[1764809922839,0.00365116,3197.4,3197.3,3.0219]
[1764809923842,0.33369415,3197.7,3197.6,3.0165]
[1764809924045,1.52699124,3197.8,3197.7,3.0165]
[1764809924243,2.54733502,3197.8,3197.7,3.0165]
[1764809924439,2.54733459,3197.8,3197.7,3.0165]
[1764809924742,2.54986418,3197.8,3197.7,3.0165]
[1764809925446,1.02756418,3197.8,3197.7,3.0165]
[1764809925745,0.34089437,3197.8,3197.7,3.0165]
[1764809926444,1.86319437,3197.8,3197.7,3.0165]
[1764809928143,3.0525,3197.6,3197.5,1.29111771]
[1764809928350,3.0525,3197.6,3197.5,3.0165]
[1764809928641,1.5223,3197.6,3197.5,3.0165]
[1764809928846,3.0525,3197.6,3197.5,3.0165]
[1764809930239,1.5302,3197.4,3197.3,3.0165]
[1764809930443,3.0525,3197.4,3197.3,1.4941]
[1764809930852,3.0525,3197.3,3197.2,6.2243]
[1764809934461,3.0525,3197.3,3197.2,3.2078]
[1764809934946,3.38609107,3197.3,3197.2,3.2078]
[1764809938259,0.9535,3197.0,3196.8,6.2243]
[1764809938556,3.0525,3196.9,3196.8,4.7019]
[1764809938860,3.0525,3196.7,3196.6,0.00380268]
[1764809939055,4.006,3196.5,3196.4,3.2078]
[1764809939357,5.29711771,3196.5,3196.4,3.2078]
[1764809939957,3.0525,3196.1,3196.0,6.38071]
[1764809940151,3.0525,3196.1,3196.0,6.38376859]
[1764809940455,3.0525,3196.1,3196.0,6.22735859]
[1764809940855,3.0525,3196.1,3196.0,4.70495859]
[1764809941158,4.34361771,3196.1,3196.0,3.21085859]
[1764809941363,3.0525,3196.1,3196.0,3.21085859]
[1764809941659,3.0525,3196.1,3196.0,6.22735859]
[1764809942255,3.0525,3196.1,3196.0,3.01955859]
[1764809942452,0.9535,3196.5,3196.0,4.3106763]
[1764809942755,4.7301,3196.7,3196.6,1.4941]
[1764809942963,6.59345829,3196.7,3196.6,1.4941]
[1764809943459,1.85545829,3196.7,3196.6,3.0165]
[1764809943758,3.0286,3196.7,3196.6,3.0165]
[1764809943952,3.2078,3197.3,3196.9,3.0068]
[1764809943953,2.4224,3197.0,3196.9,3.0068]
[1764809944151,3.9287,3197.0,3196.9,3.0068]
[1764809944353,2.4224,3197.0,3196.9,3.0068]
[1764809944557,3.9287,3197.0,3196.4,1.44750771]
[1764809944763,3.9287,3197.0,3196.9,1.4523]
[1764809944963,6.183,3197.3,3197.2,3.0068]
[1764809945164,3.30816749,3197.3,3197.2,1.4523]
[1764809945468,3.30816749,3197.3,3196.8,1.29111771]
[1764809945469,6.51596749,3197.3,3196.6,4.49891771]
[1764809945668,1.29111771,3197.2,3196.6,4.49891771]
[1764809946169,3.2078,3197.3,3196.6,4.49891771]
[1764809946775,2.9752,3197.3,3197.2,1.4523]
[1764809950074,2.4224,3197.5,3197.4,3.0068]
[1764809950274,4.94475678,3197.5,3197.4,3.0068]
[1764809950575,2.9752,3196.9,3196.8,3.2078]
[1764809950876,2.2897,3196.5,3196.4,6.2146]
[1764809951264,0.8208,3197.0,3196.4,6.2146]
[1764809952366,0.8208,3197.0,3196.4,7.50571771]
[1764809953061,3.796,3197.0,3196.9,1.4523]
[1764809953476,3.796,3197.0,3196.4,4.49891771]
[1764809953775,3.796,3197.0,3196.9,1.4523]
[1764809953967,3.796,3197.0,3196.4,4.49891771]
[1764809954477,3.796,3197.0,3196.9,1.4523]
[1764809954877,3.796,3197.0,3196.9,3.0068]
[1764809955276,2.2897,3197.0,3196.9,3.0068]
[1764809955476,2.2897,3197.0,3196.5,0.2973]
[1764809955477,6.183,3197.2,3197.1,3.0068]
[1764809955676,2.4224,3197.5,3197.4,3.0068]
[1764809955973,2.75540904,3197.5,3197.4,3.0068]
[1764809956170,3.9287,3197.5,3197.4,3.0068]
[1764809957074,6.183,3197.6,3197.5,3.0068]
[1764809957275,3.796,3197.5,3197.4,1.4523]
[1764809957479,3.796,3197.5,3197.4,3.0068]
[1764809958279,3.2078,3197.6,3197.5,3.7479]
[1764809958885,1.47612083,3197.8,3197.7,3.0068]
[1764809959474,0.00722083,3197.8,3197.7,3.0068]
[1764809962175,1.47612083,3197.8,3197.7,3.0068]
[1764809962783,2.98242083,3197.8,3197.7,1.4523]
[1764809963175,1.4689,3197.4,3197.3,6.37095]
[1764809963382,2.98242083,3197.8,3197.7,1.4523]
[1764809963575,2.98242083,3197.8,3197.7,3.0068]
[1764809966685,0.00722083,3197.8,3197.7,3.0068]
[1764809966885,6.183,3198.4,3198.3,3.0068]
[1764809967084,6.183,3198.4,3197.7,3.2078]
[1764809967384,6.183,3198.4,3198.3,3.0068]
[1764809967685,6.183,3198.4,3197.7,3.2078]
[1764809967686,6.5157227,3198.4,3197.8,0.15632]
[1764809967887,6.183,3198.4,3197.8,0.15632]
[1764809968085,6.19014774,3198.4,3198.3,1.4523]
[1764809968491,6.19014774,3198.4,3197.8,0.1633482]
[1764809968890,6.19014774,3198.4,3198.3,1.4523]
[1764809970390,4.68384774,3198.4,3198.3,3.0068]
[1764809970698,6.19014774,3198.4,3198.3,1.4523]
[1764809971181,6.19014774,3198.4,3198.3,3.0068]
[1764809971583,0.00714774,3198.4,3198.3,3.0068]
[1764809971988,2.9752,3198.2,3198.1,6.37091]
[1764809972486,2.9752,3197.9,3197.8,3.0138282]
[1764809972685,2.9752,3197.9,3197.8,0.0070282]
[1764809973194,2.9752,3197.9,3197.8,1.4593282]
[1764809975889,2.9752,3197.9,3197.8,3.0138282]
[1764809976195,2.6723,3197.9,3197.8,2.7840282]
[1764809976401,1.3183,3197.9,3197.8,2.7840282]
[1764809977101,2.6723,3197.9,3197.8,0.0070282]
[1764809979800,6.21299123,3197.9,3197.3,3.2078]
[1764809979999,2.5279,3197.4,3197.3,1.2507]
[1764809980600,2.5279,3197.4,3196.9,3.36417]
[1764809980795,2.5279,3197.4,3196.9,3.36649264]
[1764809981298,2.5279,3197.4,3197.3,1.2507]
[1764809981802,2.5279,3197.4,3197.3,2.5306]
[1764809982096,2.5279,3197.4,3197.3,1.2507]
[1764809982403,2.5279,3197.9,3197.3,3.2078]
[1764809982701,1.2747,3197.8,3197.7,2.5306]
[1764809982896,2.5279,3197.8,3197.7,2.5306]
[1764809983100,1.2747,3197.8,3197.7,2.5306]
[1764809983298,5.7357,3198.3,3198.2,1.2507]
[1764809983494,6.75300885,3198.3,3198.2,1.2507]
[1764809984097,6.75300885,3198.3,3197.5,0.47074]
[1764809984298,3.54520885,3198.2,3198.1,1.2507]
[1764809984496,0.33317339,3198.2,3198.1,2.5306]
[1764809984693,2.86107339,3198.2,3198.1,2.5306]
[1764809984895,2.5279,3198.2,3198.1,2.5306]
[1764809985097,2.8613144,3198.2,3198.1,2.5306]
[1764809985292,2.5279,3198.2,3198.1,2.5306]
[1764809986396,2.86135362,3198.2,3197.8,3.2078]
[1764809986603,2.5279,3197.9,3197.8,2.5306]
[1764809987099,1.2747,3197.9,3197.8,2.5306]
[1764809990897,1.2747,3197.9,3197.8,5.7384]
[1764809994106,2.051,3198.0,3197.9,2.5306]
[1764809994895,3.3042,3198.0,3197.9,2.5306]
[1764809996002,2.051,3198.0,3197.9,2.5306]
[1764809996207,3.21494774,3198.4,3197.8,3.2078]
[1764809996208,4.48964774,3198.4,3198.3,2.5306]
[1764809996694,1.28184774,3198.4,3198.3,2.5306]
[1764809997506,0.00714774,3198.4,3198.3,2.5306]
[1764809997700,0.00714774,3198.4,3198.3,5.8947]
[1764809998003,1.28184774,3198.4,3198.3,5.8947]
[1764809998800,2.53504774,3198.4,3198.3,2.6869]
[1764809999106,1.28184774,3198.4,3198.3,2.6869]
[1764810000101,0.00714774,3198.4,3198.3,2.6869]
[1764810000401,3.2078,3198.8,3198.7,2.5306]
[1764810000611,3.3042,3198.5,3198.4,1.2507]
[1764810000907,2.5279,3198.3,3198.2,5.7384]
[1764810001105,2.5279,3198.3,3198.2,3.2078]
[1764810001408,2.53183193,3198.3,3198.2,4.4585]
[1764810002293,1.27863193,3198.3,3198.2,5.7384]
[1764810002499,0.00393193,3198.3,3198.2,5.7384]
[1764810003500,0.00469124,3198.6,3198.5,2.5233]
[1764810003901,2.50389124,3198.6,3198.5,2.5233]
[1764810004502,2.50680793,3198.6,3198.5,2.5233]
[1764810005607,2.4992,3198.3,3198.2,3.2078]
[1764810005804,3.70835061,3198.3,3198.2,3.2078]
[1764810006004,2.4992,3198.3,3198.2,3.2078]
[1764810008404,2.4992,3198.3,3198.2,4.3689]
[1764810008711,2.4992,3198.3,3198.2,3.2078]
[1764810008909,2.4992,3197.9,3197.8,3.2078]
[1764810009108,2.4992,3197.4,3197.3,4.3689]
[1764810009809,2.4992,3197.4,3197.3,5.6415]
[1764810011109,0.7375,3198.0,3197.4,2.4337]
[1764810011413,0.7375,3198.0,3197.9,2.4337]
[1764810011604,4.25450941,3198.0,3197.9,2.4337]
[1764810011808,0.00760793,3198.6,3197.9,3.64285061]
[1764810012007,2.83259838,3198.4,3198.3,1.1611]
[1764810012304,1.01791458,3198.4,3198.3,2.4337]
[1764810012513,0.33339838,3198.4,3198.3,2.4337]
[1764810012810,1.53619838,3198.4,3198.3,2.4337]
[1764810013312,2.83259838,3198.4,3198.3,2.4337]
[1764810014214,1.53619838,3198.4,3198.3,2.4337]
[1764810017112,2.83259838,3198.4,3198.3,2.4337]
[1764810017621,1.53619838,3198.4,3198.3,2.4337]
[1764810017818,3.2367,3198.5,3198.4,2.4337]
[1764810018120,2.4992,3197.4,3197.3,3.2078]
[1764810021118,2.4992,3197.4,3196.9,3.21012264]
[1764810021516,2.4992,3197.4,3197.3,1.1611]
[1764810021910,2.4992,3197.4,3197.3,2.4337]
[1764810022919,2.4992,3197.4,3197.3,1.1611]
[1764810023130,2.4992,3197.4,3197.3,2.4337]
[1764810024830,1.2028,3197.1,3197.0,5.6415]
[1764810028024,0.7375,3197.5,3197.0,5.6415]
[1764810028226,3.2367,3197.5,3197.4,1.1611]
[1764810028427,3.2367,3197.5,3197.0,3.2078]
[1764810028720,1.2028,3197.1,3197.0,5.6415]
[1764810031427,2.4992,3197.1,3197.0,3.2078]
[1764810031628,2.4992,3197.1,3197.0,5.6415]
[1764810031829,1.2028,3197.1,3197.0,5.6415]
[1764810032030,3.2367,3197.5,3197.4,1.1611]
[1764810032225,2.4992,3197.8,3197.7,2.4337]
[1764810032430,2.4992,3197.8,3197.2,0.15635]
[1764810032630,1.2028,3197.3,3197.2,2.59005]
[1764810033229,3.2367,3197.5,3197.4,2.4337]
[1764810033424,3.2367,3197.5,3197.4,5.6415]
[1764810033621,0.7375,3197.5,3197.4,5.6415]
[1764810035033,1.7842,3197.5,3197.4,5.6415]
[1764810035231,0.7375,3198.0,3197.4,5.6415]
[1764810035436,2.60785707,3197.9,3197.8,1.0779]
[1764810035737,3.0123,3198.0,3197.9,2.1558]
[1764810035927,3.34534245,3198.0,3197.9,2.1558]
[1764810036129,3.34534245,3198.0,3197.9,1.0779]
[1764810037134,1.0467,3197.5,3197.4,4.2857]
[1764810037439,2.8971,3197.5,3197.4,5.3636]
[1764810037934,1.669,3197.5,3197.4,5.3636]
[1764810038342,2.8971,3197.5,3197.4,6.65455234]
[1764810038547,1.669,3197.5,3197.4,6.65455234]
[1764810039152,2.8971,3197.5,3197.4,6.65455234]
[1764810039455,1.669,3197.5,3197.4,6.65455234]
[1764810040254,2.7361,3197.5,3197.4,5.286]
[1764810040458,2.7463,3197.5,3197.4,4.2857]
[1764810040757,2.7463,3197.5,3197.4,5.286]
[1764810041259,2.7463,3197.5,3197.4,4.2857]
[1764810041452,0.6107,3197.5,3197.4,5.286]
[1764810041952,1.6792,3197.5,3197.4,5.286]
[1764810042153,2.7463,3197.5,3197.4,5.286]
[1764810042454,2.7463,3197.5,3197.4,3.2078]
[1764810042860,3.0795628,3197.5,3197.4,3.2078]
[1764810043258,3.0795628,3197.5,3197.4,5.2303]
[1764810043454,3.0795628,3197.5,3197.4,3.2078]
[1764810044157,3.0795628,3197.5,3197.0,4.49875234]
[1764810044458,1.0685,3197.1,3197.0,6.52125234]
[1764810044860,2.1356,3197.1,3197.0,6.52125234]
[1764810045160,2.7463,3197.0,3196.9,0.00232264]
[1764810045856,3.07984423,3197.0,3196.9,0.00232264]
[1764810046056,3.07984423,3197.0,3196.9,2.02482264]
[1764810047558,2.01274423,3197.0,3196.9,2.02482264]
[1764810047959,3.07984423,3197.0,3196.9,2.02482264]
[1764810048159,3.07984423,3197.0,3196.9,1.02452264]
[1764810049461,3.07984423,3197.0,3196.9,2.02482264]
[1764810050156,2.1356,3195.8,3195.6,1.65906231]
[1764810050364,2.1356,3195.1,3195.0,2.0248]
[1764810050558,0.6107,3195.5,3195.0,2.0248]
[1764810050856,2.7463,3195.5,3195.4,2.0248]
[1764810051055,3.08294472,3195.5,3195.4,2.02705208]
[1764810051255,1.68223808,3195.5,3195.4,2.02705208]
[1764810051448,0.00303808,3195.5,3195.4,2.02705208]
[1764810051649,0.00469124,3196.0,3195.9,2.0248]
[1764810051851,0.00469124,3196.0,3195.9,7.1214028]
[1764810052166,3.8185,3197.0,3196.5,2.0201]
[1764810052355,2.1356,3196.8,3196.3,3.2078]
[1764810052553,0.6107,3197.0,3196.3,3.2078]
[1764810052554,2.1356,3196.4,3196.3,3.2078]
[1764810052750,2.13798351,3196.4,3196.3,3.2078]
[1764810052955,2.13798351,3196.4,3196.3,4.2276]
[1764810053155,0.00238351,3196.4,3196.3,5.2279]
[1764810055061,0.00238351,3196.4,3196.3,7.1167028]
[1764810055360,2.13798351,3196.4,3196.3,3.2078]
[1764810055564,2.13798351,3196.4,3196.3,4.2276]
[1764810056061,2.13798351,3196.4,3196.3,5.2279]
[1764810056964,2.13798351,3196.4,3196.3,4.2276]
[1764810057460,2.13798351,3196.4,3196.3,1.0198]
[1764810057960,2.1356,3196.1,3196.0,2.02479124]
[1764810058865,1.0685,3196.1,3196.0,2.02479124]
[1764810059362,1.07088351,3196.4,3196.3,1.0198]